Workbook

Sheet 2D Conformal
A1: Two-Dimension Conformal Transformation v1.1
B2: J. Mahun 09 Sep 2020
A4: Control Data: | C4: Two points known in both systems. | I4: mm
B5: From Coordinates | D5: To Coordinates | I5: cm
A6: Point | B6: Y | C6: X | D6: N | E6: E | I6: meters
A7: A | B7: 2319.94 | C7: 2848.28 | D7: 99760.22 | E7: 194683.5 | I7: inches
A8: B | B8: 3561.68 | C8: 5720.05 | D8: 102367.61 | E8: 196412.8 | I8: Survey Ft
A9: units | B9: Survey Ft | C9: units | D9: Survey Ft | I9: Intl Ft
A10: Differences | B10: =B8-B7 -> 1241.74 | C10: =C8-C7 -> 2871.77 | D10: =D8-D7 -> 2607.39 | E10: =E8-E7 -> 1729.3 | I10: chains
A11: ="L "&A7&"-"&A8 -> L A-B | B11: =SQRT(B10^2+C10^2) -> 3128.734754 | D11: =SQRT(D10^2+E10^2) -> 3128.731548 | I11: rods
A12: ="Az "&A7&"-"&A8 -> Az A-B | B12: =inverseAz(B10,C10) -> 66 36 59.64 | C12: d-m-s | D12: =inverseAz(D10,E10) -> 33 33 12.75 | E12: d-m-s | I12: miles
A14: Transformation parameters:
A15: Rotation, ρ | B15: =dmstodeg(B12)-dmstodeg(D12) -> 33.063025 | C15: decimal deg
B16: =degtodms(B15) -> 33 03 46.88 | C16: d-m-s
A17: Scale, S | B17: =D11/B11 -> 0.9999989755 | C17: =IF(B9="","",B9&" / "&D9) -> Survey Ft / Survey Ft
A18: East Trans, TE | B18: =E7-B17*(+C7*COS(RADIANS(B15))-B7*SIN(RADIANS(B15))) -> 193562.1097 | C18: =IF(D9="","",D9) -> Survey Ft
A19: North Trans, TN | B19: =D7-B17*(+C7*SIN(RADIANS(B15))+B7*COS(RADIANS(B15))) -> 96262.03808 | C19: =IF(D9="","",D9) -> Survey Ft
A21: Transform Coordinates: | C21: Enter points to transform.
B22: From System | D22: To System
A23: Point | B23: Y | C23: X | D23: N | E23: E
A24: C | B24: 897.03 | C24: 3541.72 | D24: =IF(B24="","",+$B$17*(+C24*SIN(RADIANS($B$15))+B24*COS(RADIANS($B$15)))+$B$19) -> 98946.03527 | E24: =IF(C24="","",+$B$17*(+C24*COS(RADIANS($B$15))-B24*SIN(RADIANS($B$15)))+$B$18) -> 196040.9351
B25: 1941.26 | C25: 6160.31 | D25: =IF(B25="","",+$B$17*(+C25*SIN(RADIANS($B$15))+B25*COS(RADIANS($B$15)))+$B$19) -> 101249.7729 | E25: =IF(C25="","",+$B$17*(+C25*COS(RADIANS($B$15))-B25*SIN(RADIANS($B$15)))+$B$18) -> 197665.8062
D26: =IF(B26="","",+$B$17*(+C26*SIN(RADIANS($B$15))+B26*COS(RADIANS($B$15)))+$B$19) ->  | E26: =IF(C26="","",+$B$17*(+C26*COS(RADIANS($B$15))-B26*SIN(RADIANS($B$15)))+$B$18) -> 
D27: =IF(B27="","",+$B$17*(+C27*SIN(RADIANS($B$15))+B27*COS(RADIANS($B$15)))+$B$19) ->  | E27: =IF(C27="","",+$B$17*(+C27*COS(RADIANS($B$15))-B27*SIN(RADIANS($B$15)))+$B$18) -> 
E28: =IF(C28="","",+$B$17*(+C28*COS(RADIANS($B$15))-B28*SIN(RADIANS($B$15)))+$B$18) -> 
